Cogmind - Beta 13 @@@ ROGUE MODE // 2024.04.10 @ 11:41:11 Player: Geo Result: Self-destructed Performance ------------- Evolutions (3) 1500 Regions Visited (10) 2000 Robots Destroyed (120) 600 Value Destroyed (3261) 3261 Prototype IDs (27) 540 Alien Tech Used (0) 0 Bonus (1842) 1842 TOTAL SCORE: 9743 Bonus ------- High Alert Combat Kills 175 Follower Combat Kills 1349 Entered Garrisons 200 Aligned with FarCom 300 Friendly Fire -182 Cogmind --------- Core Integrity 401/700 Matter 137/300 Energy 100/100 System Corruption 0% Temperature Cool (0) Movement Core (50) Location -7/Factory Parts ------- > --- POWER (1) -------- (None) > --- PROPULSION (3) --- (None) > --- UTILITY (5) ------ Improved Terrain Scan Processor Improved Targeting Computer Target Analyzer Hacking Suite > --- WEAPON (4) ------- (None) > --- INVENTORY (5) ---- Authchip [R/Combat] Enhanced Autogun Great Axe Fusion Bomb Trap Gamma Bomb Trap Peak State ------------ > --- POWER ------------ Enhanced Nuclear Core > --- PROPULSION ------- Light Treads Improved Treads Improved Treads > --- UTILITY ---------- Improved Heat Sink High-capacity Storage Unit Improved Targeting Computer Hacking Suite Component Analysis Suite > --- WEAPON ----------- Heavy Assault Rifle Improved Assault Rifle Enhanced Autogun Great Maul > --- INVENTORY -------- Light Nuclear Core Enhanced Nuclear Core Light Treads Light Treads Improved Terrain Scan Processor Transport Network Coupler Target Analyzer Recoil Stabilizer Authchip [R/Combat] Authchip [R/Combat] Authchip [R/Combat] Authchip [R/Combat] Rocket Launcher Great Axe Fusion Bomb Trap Fusion Bomb Trap Fusion Bomb Trap Gamma Bomb Trap Gamma Bomb Trap [Rating: 39] Favorites ----------- Power Improved Ion Engine Engine Improved Ion Engine Power Core Light Nuclear Core Propulsion Light Treads Treads Light Treads Leg Aluminum Leg Wheel Armored Wheel Utility High-capacity Storage Unit Device Heat Sink Storage High-capacity Storage Unit Processor Improved Targeting Computer Hackware Hacking Suite Protection Improved Light Armor Plating Weapon Heavy Assault Rifle Energy Gun Beam Rifle Ballistic Gun Heavy Assault Rifle Launcher Mini Grenade Launcher Impact Weapon Great Maul Build | -11 -10 -10 -9 -9 -9 -8 -8 -8 -8 -7 ------- Run | Yrd Mat Min Mat Min Exi Min Mat Sto Gar Fac Slots Evolved 6 | . . . 2 . . . 2 . . 2 Power . | . . . . . . . . . . . Propulsion 1 | . . . . . . . . . . 1 Utility 3 | . . . . . . . 2 . . 1 Weapon 2 | . . . 2 . . . . . . . Parts Attached 92 | . 5 4 15 2 3 1 25 9 16 12 Power 8 | . 1 . 1 . 1 . 1 1 1 2 Engine 3 | . . . 1 . 1 . 1 . . . Core 5 | . 1 . . . . . . 1 1 2 Reactor . | . . . . . . . . . . . Propulsion 22 | . 2 . 4 1 1 . 8 . 3 3 Treads 21 | . 2 . 4 1 . . 8 . 3 3 Leg . | . . . . . . . . . . . Wheel 1 | . . . . . 1 . . . . . Hover . | . . . . . . . . . . . Flight . | . . . . . . . . . . . Utility 26 | . . 1 2 1 . . 9 2 6 5 Device 13 | . . 1 1 . . . 5 1 3 2 Storage 2 | . . . . 1 . . . . . 1 Processor 5 | . . . . . . . 1 1 1 2 Hackware 2 | . . . . . . . . . 2 . Protection 4 | . . . 1 . . . 3 . . . Artifact . | . . . . . . . . . . . Weapon 36 | . 2 3 8 . 1 1 7 6 6 2 Energy Gun 4 | . 1 1 2 . . . . . . . Energy Cannon . | . . . . . . . . . . . Ballistic Gun 24 | . . 2 6 . 1 . 5 5 4 1 Ballistic Cannon . | . . . . . . . . . . . Launcher 6 | . 1 . . . . 1 1 1 1 1 Special Weapon . | . . . . . . . . . . . Impact Weapon 2 | . . . . . . . 1 . 1 . Slashing Weapon . | . . . . . . . . . . . Piercing Weapon . | . . . . . . . . . . . Special Melee Weapon . | . . . . . . . . . . . Unidentified Prototypes 3 | . . . . . . . 3 . . . Corrupted Parts 2 | . . 2 . . . . . . . . System Corruption 8 | . . 8 . . . . . . . . Parts Lost 35 | . 1 2 2 . 5 1 5 2 8 9 Power 5 | . . . 1 . 1 . . . 2 1 Propulsion 7 | . . . 1 . 1 . 1 . 1 3 Utility 5 | . . . . . . . 3 1 . 1 Weapon 18 | . 1 2 . . 3 1 1 1 5 4 Highest Loss Streak 4 | . 1 1 2 . 3 1 3 1 3 4 To Critical Strikes 4 | . . . . . 3 . . . . 1 Average Slot Usage (%) 92 | . 85 97 95 100 95 77 94 98 88 84 Engine 6 | . 11 . 8 11 10 11 9 4 . . Core 2 | . 2 14 1 . . . . 4 2 5 Treads 18 | . 9 28 21 22 18 11 16 18 17 17 Wheel 1 | . . . . . 3 11 1 . . . Device 9 | . . 13 10 11 11 11 11 9 9 7 Storage 9 | . 14 14 11 11 11 11 9 9 9 6 Processor 4 | . . . . . . . 1 8 9 12 Hackware 2 | . . . . . . . . . 8 7 Protection 2 | . . . . . . . 10 9 . . Ballistic Gun 30 | . 14 23 36 44 39 11 27 34 30 16 Launcher 1 | . 10 . . . . 11 1 . . . Impact Weapon 1 | . . . . . . . 5 . . 6 Naked Turns . | . . . . . . . . . . . Heaviest Build 72 | 10 13 15 23 56 56 49 72 66 57 63 Greatest Support 66 | 20 40 40 40 40 40 12 46 46 46 66 Greatest Overweight (x) 5 | . . . . 1 4 4 5 1 1 1 Average Overweight (x) 1 | . . . . . 1 4 1 1 1 . Largest Inventory Capacity 20 | . 8 8 8 20 20 20 20 20 20 20 Average Capacity 17 | . 8 8 8 16 20 20 20 20 20 16 Most Carried 20 | . 8 8 8 10 16 14 20 20 20 20 Average Carried 14 | . 7 7 7 9 12 12 18 19 18 16 Final Capacity 20 | 8 8 8 8 20 20 20 20 20 20 5 Final Carried 20 | 6 7 8 8 10 11 14 20 19 20 5 Class Distribution -------------------- 42% | Scavenger-Gunner 16% | Gunner 11% | Scavenger-Tank 10% | Scavenger-Mutant 9% | Mutant 3% | Scavenger-Skirmisher 3% | Commander-Gunner Dominant Class ---------------- Mutant | -10/Materials Scavenger-Mutant | -10/Mines Scavenger-Gunner | -9/Materials Scavenger-Gunner | -9/Mines Scavenger-Gunner | -9/Exiles Scavenger-Mutant | -8/Mines Scavenger-Tank | -8/Materials Gunner | -8/Storage Gunner | -8/Garrison Scavenger-Gunner | -7/Factory Resources | -11 -10 -10 -9 -9 -9 -8 -8 -8 -8 -7 ----------- Run | Yrd Mat Min Mat Min Exi Min Mat Sto Gar Fac Matter Collected 3147 | 200 191 165 413 92 75 49 694 592 343 333 Remotely . | . . . . . . . . . . . Salvage Created 4187 | . 243 141 632 44 30 83 1123 1008 442 441 Parts 240 | . 20 10 33 3 3 11 45 53 23 39 Haulers Intercepted 11 | . . . 2 . . . 4 3 . 2 Recyclers Shooed 7 | . 1 . . . . . 4 1 . 1 Parts Field Recycled . | . . . . . . . . . . . Retrieved Matter . | . . . . . . . . . . . Parts Self-Destructed . | . . . . . . . . . . . Prevented . | . . . . . . . . . . . Kills | -11 -10 -10 -9 -9 -9 -8 -8 -8 -8 -7 ------- Run | Yrd Mat Min Mat Min Exi Min Mat Sto Gar Fac Combat Hostiles Destroyed 78 | . 9 5 8 3 1 7 14 12 11 8 Guns 57 | . 4 5 8 3 1 . 10 12 8 6 AOE 21 | . 5 . . . . 7 4 . 3 2 Classes Destroyed 16 | . 5 . 3 . 1 . 2 1 2 2 Worker 11 | . 1 . 1 . . 1 2 6 . . Builder 6 | . . . . . . . . . . 6 Hauler 11 | . . . 2 . . . 4 3 . 2 Recycler 6 | . 1 . 1 . . . 3 1 . . Mechanic 1 | . . . . . . . . . . 1 Operator 2 | . 1 . 1 . . . . . . . Watcher 3 | . . . . . . . 3 . . . Swarmer 13 | . 3 3 . 3 . 4 . . . . Cutter 3 | . . . . . . . . . 3 . Grunt 41 | . 6 2 1 . . 3 8 8 6 7 Brawler 2 | . . . 1 . . . 1 . . . Duelist 2 | . . . . . . . . 1 . 1 Sentry 15 | . . . 6 . . . 4 4 1 . Hunter 1 | . . . . . . . 1 . . . Programmer 1 | . . . . . . . . . 1 . Zionite 1 | . . . . . 1 . . . . . Best Kill Streak 9 | . 6 3 2 4 1 5 7 7 6 9 Combat Bots Only 6 | . 5 3 2 3 1 4 4 3 6 4 Max Kills in Single Turn 4 | . 2 1 2 1 1 4 2 2 2 3 Gunslinging . | . . . . . . . . . . . Exploded 3 | . 2 . . . . 3 2 . 2 1 Melee . | . . . . . . . . . . . Uniques/NPCs Destroyed 1 | . . . . . 1 . . . . . 8R-AWN (-9/Exiles) Combat | -11 -10 -10 -9 -9 -9 -8 -8 -8 -8 -7 -------- Run | Yrd Mat Min Mat Min Exi Min Mat Sto Gar Fac Hostile Shots Fired 499 | . 36 40 55 10 42 14 59 46 87 110 Missed 151 | . 12 8 20 2 14 3 18 18 21 35 Damage Taken 5677 | . 357 338 501 66 479 220 889 480 1170 1177 Core 964 | . 88 80 47 . 65 36 146 63 140 299 Absorbed by Shields 28 | . . . . . . . 28 . . . Core Remaining (%) 57 | 100 . 32 . . . 63 . . 36 . Volleys Fired 270 | . 34 16 42 4 12 8 57 40 25 32 Largest 4 | . 2 2 4 4 4 1 4 4 4 3 Hottest 122 | . 60 85 122 86 86 30 94 94 89 71 Shots Fired 707 | . 39 24 146 16 38 8 150 140 81 65 Gun 671 | . 30 24 146 16 38 . 142 138 78 59 Cannon . | . . . . . . . . . . . Launcher 36 | . 9 . . . . 8 8 2 3 6 Special . | . . . . . . . . . . . Kinetic 637 | . 25 11 130 16 38 . 142 138 78 59 Thermal 24 | . 1 7 16 . . . . . . . Explosive 36 | . 9 . . . . 8 8 2 3 6 Electromagnetic 10 | . 4 6 . . . . . . . . Robot Hit Streak 24 | . 11 5 12 5 7 6 17 24 10 12 Robot Miss Streak 5 | . 3 3 2 3 4 . 5 2 3 3 Penetration Max . | . . . . . . . . . . . Secondary Targets 7 | . . . . 1 . . 1 1 3 1 Max Gunslinging Chain 1 | . . . . 1 . . 1 1 1 1 Shots Hit Robots 477 | . 25 13 101 8 18 6 105 89 59 53 Core Hits 221 | . 19 8 28 5 4 14 54 37 26 26 Critical Kills 3 | . . . . . . . 1 1 . 1 Critical Parts Destroyed 4 | . . . . . . . 2 . 1 1 Critical Strikes 12 | . . 2 3 . . . 3 1 1 2 Burn 4 | . . 1 3 . . . . . . . Destroy 3 | . . . . . . . . 1 1 1 Corrupt 1 | . . 1 . . . . . . . . Smash 4 | . . . . . . . 3 . . 1 Melee Attacks 15 | . . . . . . . 10 . 2 3 Impact 15 | . . . . . . . 10 . 2 3 Slashing . | . . . . . . . . . . . Piercing . | . . . . . . . . . . . Sneak Attacks 5 | . . . . . . . 2 . . 3 Combat Hostiles . | . . . . . . . . . . . Follow-up Attacks . | . . . . . . . . . . . Damage Inflicted 9433 | . 914 192 1091 110 194 692 2223 1407 1117 1493 Guns 5903 | . 176 192 1087 99 194 . 1196 1360 879 720 Cannons . | . . . . . . . . . . . Explosions 2829 | . 736 . . . . 670 718 . 176 529 Melee 614 | . . . . . . . 308 . 62 244 Ramming 87 | . 2 . 4 11 . 22 1 47 . . Kinetic 5529 | . 106 49 926 99 194 . 1196 1360 879 720 Thermal 232 | . 10 61 161 . . . . . . . Explosive 2829 | . 736 . . . . 670 718 . 176 529 Electromagnetic 142 | . 60 82 . . . . . . . . Impact 614 | . . . . . . . 308 . 62 244 Slashing . | . . . . . . . . . . . Piercing . | . . . . . . . . . . . Highest Corruption 10 | . . 8 . . . . 9 9 10 . Average Corruption 9 | . . 7 . . . . 9 9 9 . Corruption Purged . | . . . . . . . . . . . Corruption Blocked . | . . . . . . . . . . . Effects 125 | . . 10 . . . . 26 29 60 . Message Errors 29 | . . 1 . . . . 4 8 16 . Matter Fused 29 | . . 2 . . . . 7 4 16 . Heat Flow Errors 14 | . . 1 . . . . . 4 9 . Energy Discharges 14 | . . 2 . . . . 2 5 5 . Parts Rejected 2 | . . . . . . . 1 1 . . Parts Fused 1 | . . . . . . . . . 1 . Data Loss (minor) 9 | . . 1 . . . . 2 1 5 . Data Loss (major) 9 | . . 2 . . . . 1 1 5 . Misfires 8 | . . . . . . . 5 1 2 . Alerts 4 | . . . . . . . 1 2 1 . Weapon Failures 6 | . . 1 . . . . 3 2 . . Overload Shots . | . . . . . . . . . . . Overflow Damage 361 | . 20 . . . . . 203 . 17 121 Projectiles . | . . . . . . . . . . . Explosions 56 | . 20 . . . . . . . 17 19 Melee 305 | . . . . . . . 203 . . 102 Knockbacks 5 | . . . . . . 1 2 . 1 1 Impact 5 | . . . . . . 1 2 . 1 1 Kinetic . | . . . . . . . . . . . Secondary . | . . . . . . . . . . . Self-Inflicted Damage 204 | . 34 . . . . 44 . . 80 46 Shots 6 | . 2 . . . . 1 . . 2 1 Rammed 11 | . . . 1 2 . 1 2 5 . . Targets Rammed 13 | . 1 . 1 2 . 1 2 6 . . Kicked . | . . . . . . . . . . . Crushed 2 | . 1 . . . . . . 1 . . Highest Temperature 360 | . 47 162 360 . 8 25 34 240 215 22 Average Temperature 60 | . 13 63 106 . 6 10 8 51 78 10 Received Heat Transfer 1869 | . 165 126 147 . 18 99 261 261 441 351 Siege Activations . | . . . . . . . . . . . Robots Corrupted . | . . . . . . . . . . . Combat Hostiles . | . . . . . . . . . . . Parts Fried 1 | . . . . . . . 1 . . . Impact Corruptions 8 | . . . . . . . 6 . . 2 Robots Melted . | . . . . . . . . . . . Combat Hostiles . | . . . . . . . . . . . Parts Melted 2 | . . . 2 . . . . . . . Heat Transferred 876 | . 25 222 629 . . . . . . . Parts Sabotaged . | . . . . . . . . . . . Parts Stolen . | . . . . . . . . . . . Parts Stripped . | . . . . . . . . . . . Power Chain Reactions . | . . . . . . . . . . . Alert | -11 -10 -10 -9 -9 -9 -8 -8 -8 -8 -7 ------- Run | Yrd Mat Min Mat Min Exi Min Mat Sto Gar Fac Peak Influence 756 | . 309 220 241 158 . 207 308 705 756 440 Initial 396 | . . 120 7 73 . . 2 78 395 396 Average 256 | . 171 188 124 62 . 103 96 308 552 389 Maximum Alert Level 3 | . 1 1 1 . . 1 1 3 3 2 Low Security (%) 48 | . 41 35 84 100 . 79 90 24 . . Level 1 20 | . 58 64 15 . . 20 9 51 2 35 Level 2 29 | . . . . . . . . 22 90 64 Level 3 1 | . . . . . . . . . 7 . Level 4 . | . . . . . . . . . . . Level 5 . | . . . . . . . . . . . High Security . | . . . . . . . . . . . Max Security . | . . . . . . . . . . . Squads Dispatched 10 | . 1 . 1 . . . 2 2 . 4 Investigation . | . . . . . . . . . . . Extermination 1 | . . . . . . . . . . 1 Reinforcement 7 | . 1 . 1 . . . 2 . . 3 Assault . | . . . . . . . . . . . Garrison 2 | . . . . . . . . 2 . . Intercept . | . . . . . . . . . . . Searches Triggered . | . . . . . . . . . . . Construction Impeded 1 | . . . . . . . . . . 1 Haulers Reinforced 1 | . . . . . . . . . . 1 Active Scanning Responses . | . . . . . . . . . . . Cargo Convoy Interrupts . | . . . . . . . . . . . Stealth | -11 -10 -10 -9 -9 -9 -8 -8 -8 -8 -7 --------- Run | Yrd Mat Min Mat Min Exi Min Mat Sto Gar Fac Distress Signals 8 | . . . 3 . . . 1 3 . 1 Communications Jammed . | . . . . . . . . . . . Distress Signals . | . . . . . . . . . . . Times Spotted 128 | . 12 7 18 3 2 6 27 26 11 16 Peak Tracking Total 6 | . 6 3 4 3 2 4 5 5 6 6 Tactical Retreats 4 | . . . 1 . . . . . . 3 Traps | -11 -10 -10 -9 -9 -9 -8 -8 -8 -8 -7 ------- Run | Yrd Mat Min Mat Min Exi Min Mat Sto Gar Fac Traps Triggered 1 | . 1 . . . . . . . . . Indirectly . | . . . . . . . . . . . Trap Hack Attempts . | . . . . . . . . . . . Triggered . | . . . . . . . . . . . Disarmed . | . . . . . . . . . . . Reprogrammed . | . . . . . . . . . . . Reused 3 | . . . . . . . . . . 3 Traps Extracted . | . . . . . . . . . . . Installed 3 | . . . . . . . . . . 3 Triggered 3 | . . . . . . . . . . 3 Most Traps Carried 5 | . . . . . . . . . 5 5 Machines | -11 -10 -10 -9 -9 -9 -8 -8 -8 -8 -7 ---------- Run | Yrd Mat Min Mat Min Exi Min Mat Sto Gar Fac Machines Disabled 9 | . 1 . . 1 1 . 1 1 3 1 Max in Single Turn 2 | . 1 . . 1 1 . 1 1 2 1 Machines Repaired . | . . . . . . . . . . . Machines Dismantled . | . . . . . . . . . . . Machines Sabotaged . | . . . . . . . . . . . Overloaded Fab Kills . | . . . . . . . . . . . Hacking | -11 -10 -10 -9 -9 -9 -8 -8 -8 -8 -7 --------- Run | Yrd Mat Min Mat Min Exi Min Mat Sto Gar Fac Machines Accessed 11 | . . . 3 . 1 . 3 2 1 1 Terminals 8 | . . . 3 . . . 3 1 1 . Fabricators 1 | . . . . . . . . . . 1 Repair Stations . | . . . . . . . . . . . Recycling Units . | . . . . . . . . . . . Scanalyzers . | . . . . . . . . . . . Garrison Access 1 | . . . . . . . . 1 . . Total Hacks 22 | . . . 6 . 1 . 7 5 2 1 Successful 10 | . . . 1 . 1 . 4 2 1 1 Failed 12 | . . . 5 . . . 3 3 1 . Catastrophic 2 | . . . 1 . . . 1 . . . Database Lockouts . | . . . . . . . . . . . Manual 16 | . . . 6 . 1 . 7 . 2 . Terminals 18 | . . . 6 . . . 7 3 2 . Fabricators 1 | . . . . . . . . . . 1 Repair Stations . | . . . . . . . . . . . Recycling Units . | . . . . . . . . . . . Scanalyzers . | . . . . . . . . . . . Garrison Access 2 | . . . . . . . . 2 . . Terminal Hacks 8 | . . . 1 . 1 . 4 1 1 . Open Door 1 | . . . . . . . . 1 . . Branch Access Points 1 | . . . 1 . . . . . . . Locate Traps 4 | . . . . . . . 4 . . . Garrison Registry 1 | . . . . . . . . . 1 . Derelict Proto ID Bank 1 | . . . . . 1 . . . . . Fabricator Hacks 1 | . . . . . . . . . . 1 Network Status 1 | . . . . . . . . . . 1 Repair Station Hacks . | . . . . . . . . . . . Recycling Unit Hacks . | . . . . . . . . . . . Scanalyzer . | . . . . . . . . . . . Garrison Access Hacks 1 | . . . . . . . . 1 . . Unlock Access 1 | . . . . . . . . 1 . . Unauthorized Hacks . | . . . . . . . . . . . Terminals . | . . . . . . . . . . . Fabricators . | . . . . . . . . . . . Repair Stations . | . . . . . . . . . . . Recycling Units . | . . . . . . . . . . . Scanalyzers . | . . . . . . . . . . . Garrison Access . | . . . . . . . . . . . Data Cores Recovered . | . . . . . . . . . . . Used . | . . . . . . . . . . . Hacking Detections 8 | . . . 3 . . . 1 2 1 1 Full Trace Events . | . . . . . . . . . . . Feedback Events . | . . . . . . . . . . . Feedback Blocked . | . . . . . . . . . . . Robot Schematics Acquired . | . . . . . . . . . . . Robots Built . | . . . . . . . . . . . Authchips . | . . . . . . . . . . . Time . | . . . . . . . . . . . Total Robot Build Rating . | . . . . . . . . . . . Part Schematics Acquired . | . . . . . . . . . . . Parts Built . | . . . . . . . . . . . Authchips . | . . . . . . . . . . . Time . | . . . . . . . . . . . Total Part Build Rating . | . . . . . . . . . . . Parts Repaired . | . . . . . . . . . . . Time . | . . . . . . . . . . . Parts Recycled . | . . . . . . . . . . . Recycled Matter . | . . . . . . . . . . . Retrieved Matter . | . . . . . . . . . . . Retrieved Components . | . . . . . . . . . . . Parts Scanalyzed . | . . . . . . . . . . . Part Schematics Acquired . | . . . . . . . . . . . Parts Damaged . | . . . . . . . . . . . Bothacking | -11 -10 -10 -9 -9 -9 -8 -8 -8 -8 -7 ------------ Run | Yrd Mat Min Mat Min Exi Min Mat Sto Gar Fac Used RIF Installer . | . . . . . . . . . . . Robots Hacked . | . . . . . . . . . . . Non-combat . | . . . . . . . . . . . Combat . | . . . . . . . . . . . Robot Hacks Applied . | . . . . . . . . . . . Relay Couplers Released 4 | . . . . . . . . . 4 . Programmers 4 | . . . . . . . . . 4 . Fabnet Peak Effective % . | . . . . . . . . . . . Robots Rewired . | . . . . . . . . . . . Allies Hacked . | . . . . . . . . . . . Hacks Repelled . | . . . . . . . . . . . Allies | -11 -10 -10 -9 -9 -9 -8 -8 -8 -8 -7 -------- Run | Yrd Mat Min Mat Min Exi Min Mat Sto Gar Fac Total Allies 13 | . . . . 3 . . . 10 . . Largest Group 10 | . . . . 3 3 . . 10 . . Highest-Rated Group 173 | . . . . 40 40 . . 173 . . Highest-Rated Ally 29 | . . . . 16 16 . . 29 . . Total Orders 1 | . . . . . 1 . . . . . STAY 1 | . . . . . 1 . . . . . Ally Attacks 234 | . . . . . 122 . . 112 . . Total Damage 5836 | . . . . . 4353 . . 1483 . . Kills 49 | . . . . . 31 . . 18 . . Allies Corrupted 1 | . . . . . 1 . . . . . Allies Melted . | . . . . . . . . . . . Turrets Deployed 3 | . . . . . 3 . . . . . Intel | -11 -10 -10 -9 -9 -9 -8 -8 -8 -8 -7 ------- Run | Yrd Mat Min Mat Min Exi Min Mat Sto Gar Fac Robot Analysis Total . | . . . . . . . . . . . Derelict Logs Recovered 2 | . . 1 . 1 . . . . . . Drone Launches . | . . . . . . . . . . . Drone Recoveries . | . . . . . . . . . . . Exploration | -11 -10 -10 -9 -9 -9 -8 -8 -8 -8 -7 ------------- Run | Yrd Mat Min Mat Min Exi Min Mat Sto Gar Fac Turns Passed 9194 | . 392 426 690 1001 1127 438 1643 878 1775 824 Spaces Moved 3704 | 1 237 238 330 469 364 273 600 289 490 413 Core 74 | . . . . . . . . . . 74 Treads 3010 | . 66 238 330 469 302 . 487 289 490 339 Legs 172 | 1 171 . . . . . . . . . Wheels 448 | . . . . . 62 273 113 . . . Hover . | . . . . . . . . . . . Flight . | . . . . . . . . . . . Fastest Speed 50 | 120 120 160 160 160 135 150 150 240 240 50 Average Speed 197 | 120 131 160 160 208 224 150 225 240 240 158 Slowest Speed 240 | 120 160 160 160 240 240 150 240 240 240 240 Overloaded Moves . | . . . . . . . . . . . Propulsion Burnouts . | . . . . . . . . . . . Robots Hopped . | . . . . . . . . . . . Cave-ins Triggered 1 | . . . . . . . 1 . . . Exploration Rate (%) 51 | 2 60 51 32 88 61 92 44 66 55 14 Regions Visited 10 Branch Regions 5 Pre-discovered Areas 2 | . . 1 . 1 . . . . . . Known Exits Taken 2 | . . . 1 . . . . 1 . . Unknown Exits Taken 7 | 1 1 1 . 1 1 1 1 . . . Scrap Searched 4 | . . 1 . 2 . 1 . . . . Spaces Dug 36 | . . . . . . 16 4 10 6 . Terrain Destroyed 173 | . 25 . . . . 39 78 14 17 . Melee 4 | . . . . . . . 4 . . . Projectile . | . . . . . . . . . . . AOE 169 | . 25 . . . . 39 74 14 17 . Terrain Rammed . | . . . . . . . . . . . Walls Destroyed . | . . . . . . . . . . . Machines Disabled . | . . . . . . . . . . . Actions | -11 -10 -10 -9 -9 -9 -8 -8 -8 -8 -7 --------- Run | Yrd Mat Min Mat Min Exi Min Mat Sto Gar Fac Total 5084 | . 284 259 412 482 652 293 761 375 1034 532 Wait 878 | . 1 . 6 1 265 7 52 19 485 42 Move 3693 | . 236 237 329 468 363 272 599 289 487 413 Hop . | . . . . . . . . . . . Pick Up 52 | . 3 1 4 3 6 4 7 3 12 9 Fast Attach 36 | . 2 4 9 . 1 . 9 4 4 3 Attach 28 | . 2 . . . 2 1 8 1 10 4 Detach 4 | . . . . . . . 3 . . 1 Swap 28 | . 1 . 6 2 . . 8 4 2 5 Drop 64 | . 4 1 15 2 3 . 6 9 7 17 Fire 270 | . 34 16 42 4 12 8 57 40 25 32 Melee 15 | . . . . . . . 10 . 2 3 Ram 1 | . . . . . . 1 . . . . Kick . | . . . . . . . . . . . Crush 12 | . 1 . 1 2 . . 2 6 . . Escape Stasis . | . . . . . . . . . . . Rewire . | . . . . . . . . . . . Trap 3 | . . . . . . . . . . 3 Miscellaneous . | . . . . . . . . . . . Route ------- -11/Scrapyard -10/Materials (discovered 4 exits: *Mat x3 / [*Min]) -10/Mines (discovered 2 exits: *Mat x2) -9/Materials -9/Mines (discovered 3 exits: *Mat x2 / *Exi) -9/Exiles -8/Mines -8/Materials -8/Storage -8/Garrison (discovered 3 exits: *Fac x3) -7/Factory History --------- Turn | Location | Event 1 | -11/Scrapyard | Discovered new exit (range 0) 1 | -11/Scrapyard | Entered Materials 136 | -10/Materials | Discovered new exit (range 10) 219 | -10/Materials | Discovered new exit (range 8) 305 | -10/Materials | Discovered new exit (range 15) 308 | -10/Materials | Build established: Mutant 372 | -10/Materials | Discovered new exit (range 14) 393 | -10/Materials | Entered Mines 404 | -10/Mines | Core integrity fell below 50% 466 | -10/Mines | Found a damaged Exp. Sensor Array with a note attached 470 | -10/Mines | Found Prototype Device 534 | -10/Mines | Discovered new exit (range 11) 680 | -10/Mines | A weapon hastily lodged in a ceiling crevice suddenly fell to the ground 726 | -10/Mines | Learned location of Storage (-8) 744 | -10/Mines | Discovered new exit (range 5) 819 | -10/Mines | Entered Materials 819 | -9/Materials | Evolved 2 slots: Weapon x2 839 | -9/Materials | Build established: Scavenger-Mutant 1314 | -9/Materials | Build established: Scavenger-Gunner 1436 | -9/Materials | Identified exit to Mines 1509 | -9/Materials | Entered Mines 1514 | -9/Mines | Met a Derelict bent on vengeance 1619 | -9/Mines | Received a Rocket Launcher from a helpful Derelict 1703 | -9/Mines | Discovered new exit (range 5) 2033 | -9/Mines | Assisted by bots powering up and referring to "LRC-V3" 2073 | -9/Mines | Discovered new exit (range 13) 2251 | -9/Mines | Deemed a non-threat by the Exiles lab entrance 2251 | -9/Mines | Discovered new exit (range 5) 2510 | -9/Mines | Entered Exiles 2510 | -9/Exiles | Accompanied by 3 allies 2602 | -9/Exiles | Met 8R-AWN 2641 | -9/Exiles | Met EX-HEX 2739 | -9/Exiles | Met EX-DEC 2900 | -9/Exiles | Met EX-BIN 2938 | -9/Exiles | Aligned with FarCom system 2941 | -9/Exiles | Given EX-Vault access code 2998 | -9/Exiles | Opened EX-Vault 3015 | -9/Exiles | Found Deploy-a-Sentry 3018 | -9/Exiles | Found Deploy-a-Sentry 3022 | -9/Exiles | Found Deploy-a-Sentry 3078 | -9/Exiles | Warned to stay clear of 0b10 Research branches 3098 | -9/Exiles | Exiles lab attacked by MAIN.C 3221 | -9/Exiles | Attacked by the Exiles 3238 | -9/Exiles | DAS Turret deployed 3241 | -9/Exiles | DAS Turret deployed 3244 | -9/Exiles | DAS Turret deployed 3271 | -9/Exiles | Destroyed 8R-AWN 3301 | -9/Exiles | Lost 3 parts (1p1n1w) 3605 | -9/Exiles | Discovered new exit (range 14) 3637 | -9/Exiles | Entered Mines 3905 | -8/Mines | Build established: Scavenger-Mutant 4061 | -8/Mines | Discovered new exit (range 7) 4075 | -8/Mines | Entered Materials 4075 | -8/Materials | Evolved 2 slots: Utility x2 4079 | -8/Materials | Identified Exp. Sensor Array 4522 | -8/Materials | Build established: Scavenger-Tank 5002 | -8/Materials | Build established: Scavenger-Skirmisher 5050 | -8/Materials | Crushed by falling debris 5247 | -8/Materials | Lost 3 parts (1n1u1w) 5352 | -8/Materials | Build established: Scavenger-Tank 5434 | -8/Materials | Discovered new exit (range 5) 5718 | -8/Materials | Entered Storage 6051 | -8/Storage | Build established: Gunner 6178 | -8/Storage | Assisted by bots powering up and referring to "LRC-V3" 6461 | -8/Storage | Garrison activated, responded to threat 6470 | -8/Storage | Build established: Commander-Gunner 6566 | -8/Storage | Lost 8 allies 6596 | -8/Storage | Identified exit to Garrison 6596 | -8/Storage | Entered Garrison 6639 | -8/Garrison | Discovered new exit (range 42) 6639 | -8/Garrison | Discovered new exit (range 65) 6639 | -8/Garrison | Discovered new exit (range 72) 6716 | -8/Garrison | Triggered checkpoint 6737 | -8/Garrison | Core integrity fell below 50% 6774 | -8/Garrison | Lost 3 parts (1p1n1w) 7110 | -8/Garrison | Build established: Scavenger-Gunner 7198 | -8/Garrison | System corruption reached 10% 7504 | -8/Garrison | Build established: Gunner 7821 | -8/Garrison | Attempted to access garrison exit controls, blocked by remote lockdown 7962 | -8/Garrison | Triggered checkpoint 8071 | -8/Garrison | Attempted to access garrison exit controls, blocked by remote lockdown 8140 | -8/Garrison | Triggered checkpoint 8371 | -8/Garrison | Entered Factory 8371 | -7/Factory | Evolved 2 slots: Propulsion x1, Utility x1 8747 | -7/Factory | Build established: Scavenger-Gunner 8994 | -7/Factory | Lost 4 parts (1n1u2w) 9195 | -7/Factory | Self-destructed Last Messages --------------- 09152_ The unstable cave ceiling collapses. 09152_ Installed Fusion Bomb Trap. 09153_ P-60 Hacker triggered Fusion Bomb Trap. 09153_ An explosion rips through the floor. 09153_ P-60 Hacker destroyed. 09153_ Matter Pump disabled. 09153_ K-01 Serf destroyed. 09153_ Lgt. Treads destroyed. 09153_ Matter Pump disabled. 09154_ Dropped Lrg. Storage Unit. 09155_ The unstable cave ceiling collapses. 09155_ U-05 Engineer lays Concrete. 09155_ Dropped Great Maul. 09156_ U-05 Engineer lays Concrete. 09156_ Acquired Gamma Bomb Trap. 09157_ U-05 Engineer builds a Wall. 09157_ Dropped Imp. Heat Sink. 09158_ Acquired Enh. Autogun. 09162_ R-06 Scavenger collects Authchip [R/Combat]. 09173_ K-01 Serf cleans the Assembly Bed. Map ----- +----------------------------------------------------+ | | | | | | | | | | | | | | | | | | | | | | | | | | | | | | | | | | | | | | | | | | | ?????????????????????????????????????????????????? | | ?????????????????????????????????????????????????? | | ?????????????????????????????????????????????????? | | ?????????????????####################????????????? | | ?????????????????+ @/ #????????????? | | ?????????????????# # #????????????? | | ?????????????????# ^# #????????????? | | ?????????????????# """ + #????????????? | | ?????????????????# """ ## #????????????? | | ?????????????????# """ ## #???????###### | | ?????????????????# ## #?#### | | ????????????###### """ ## # | | ????????????? """ ## # | | ????????????? """ # + [[ | | ??????????????? # # [[ | | ????????????????? # # [[ | | ???????????????????? # #? | | ??????????????######### # #? | | ??????????????# # + #?? ! | | ??????????????# # # #? | | ??????????????# # ########### """"""" | | ??????????????# # """""?? | | ??????????????# # ""????? | | ??????????????# + ""????? | | ??????????????# ! # ????? | | ??????????????# * # ????? | | ??????????????# ######+####### ""??"?????? | | ??????????????# #?# #???????????????? | | ??????????????# #?#! #???????????????? | +----------------------------------------------------+ Best States ------------- Heat Dissipation 48 Energy Generation 17 Energy Capacity 300 Matter Stores 300 Matter Capacity 300 Sight Range 16 Robot Scan Range 20 Terrain Scan Range 14 Terrain Scan Density 110 Armor Coverage 375 Evasion (%) 55 Targeting Accuracy 12 Target Analysis 5 Recoil Reduction 3 Offensive Hacking 10 Authchip Count 6 Item Schematics ----------------- None Robot Schematics ------------------ None Fabricated ------------ Nothing Alien Tech Used ----------------- None Achievements -------------- None Challenges ------------ None Game ------ Seed DefenseDecoyMagmablaster Manual? 0 Play Time 00:47:04 Cumulative 476.4 hours Start 2024.04.08 @ 11:27:09 End 2024.04.10 @ 11:41:11 Sessions 3 Manual Loads 0 Difficulty Rogue Special Mode None Game No. 524 Rogue 524 Adventurer 0 Explorer 0 Win Type - Total 14 Types 9/0/4/1/0/0/0/0/0 Lore% 82 Gallery% 90 Achievement% 82 Wizard Run 0 Options --------- Layout 0 ASCII 0 Keyboard 0 Movement Numpad Keybinds 0 Fullscreen 1 Font 18/SmallcapsGlow Map View 76x50 Zoom Use 0% Tactical HUD 1 Map Filters NONE Filters NONE Steam 1 RUN: 8384ac62-2ea1-4912-8c78-9c87714832fd